Workbook

Sheet Home
A1: Republic of the Philippines
A2: Department of Education
A4: e-SAT CONSOLIDATION FORM
A5: SY 2025-2028
A6: This tool was created to automate the consolidation of Electronic Self-Assessment Tool (e-SAT) accomplished by teachers.
A10: PRIVACY NOTICE
A11: By using this tool, you are authorizing the personnel of the Department of Education to collect, process, retain, and dispose of your personal information in accordance with the Data Privacy Act of 2012.
B15: Consolidation Level | C15: School
B16: School Name
B17: School ID
B19: Auto-generate Certificates | C19: YES | D19: Certificate File Type | E19: Single Excel file
A27: INSTRUCTIONS
A29: To consolidate all e-SAT of Beginning Towards Proficient, Proficient, Highly Proficient, and Distinguished Teachers per SCHOOL, do the following:
A31: Step 1: | B31: Download the eSAT Consol file.
B32: DO NOT open in Google Drive/Onedrive. This is a macro-enabled file that requires to be opened in Microsoft Excel.
A34: Step 2: | B34: Create a folder for your school containing all the e-SAT of teachers.
B35: Note: There should only be ONE consolidation per school.
B36: Move the eSAT Consol in the same location as the created folder (NOT inside the created folder).
A38: Step 3: | B38: Open the eSAT Consol.
B39: Enable Macros. Click Enable Editing and Enable Content.
A41: Step 4: | B41: Click the button CONSOLIDATE e-SAT.
A43: Step 5: | B43: SELECT the folder where the e-SAT files are stored. DO NOT double-click / open the folder.
B44: Click "OK" to start the process of consolidation.
A46: Step 6: | B46: Wait for the consolidation to finish. Once the consolidation is done, a prompt will indicate that the files (e-SAT) were successfully consolidated. You may now explore the other sheets to view consolidated report of e-SAT data of teachers.
A49: Step 7: | B49: Save and rename your file by adding the name / initials of your school at the end.
B50: Example: eSAT Consol-NEES
A54: Developed by:
A56: CHRISTINE ANNE M. PREPUSE
A57: School Principal, NEW ERA ELEMENTARY SCHOOL
A58: CSDO DASMARIÑAS
A59: christineanne.prepuse@deped.gov.ph

Sheet Certificate
A2: Republic of the Philippines
A3: Department of Education
A4: <REGION>
A5: <DIVISION OF>
A6: <NAME OF SCHOOL>
A7: <School Address>
A9: Certificate of Completion
A10: This certificate is presented to
A11: <NAME OF TEACHER>
A12: for successfully completing the Electronic Self-Assessment Tool (e-SAT) for
A13: <Beginning towards Proficient/Proficient/Highly Proficient/Distinguished> Teacher for the School Year 2025-2028.
A15: Given this <nth day of month year> at
A16: =A6&", "&A7&"." -> <NAME OF SCHOOL>, <School Address>.
A20: <NAME>
A21: ICT Coordinator / School Head / Focal Person in charge of e-SAT

Sheet Demographic Summary (hidden)
A1: The Count column represents the number of personnel that participated in the survey.
A2: Republic of the Philippines
A3: Department of Education
A5: =Home!C16 -> 0
A6: =Certificate!A7 -> <School Address>
A8: DEMOGRAPHIC PROFILE
A10: Region: | B10: =Database!L2 -> 0
A11: Division: | B11: =Database!M2 -> 0
A12: School ID: | B12: =Database!N2 -> 0
A13: School Name: | B13: =Database!O2 -> 0
A14: School Type: | B14: =Database!P2 -> 0
A15: School Size: | B15: =Database!Q2 -> 0
A16: Curricular Classification: | B16: =Database!R2 -> 0
A18: Career Stages | B18: Count | D18: Level Taught | E18: Count
A19: Beginning towards Proficient | B19: =COUNTIF(Database!D:D,"BtP") -> 0 | D19: Kindergarten | E19: =COUNTIF(Database!J:J,$D19) -> 0
A20: Proficient | B20: =COUNTIF(Database!D:D,"P") -> 0 | D20: Elementary | E20: =COUNTIF(Database!J:J,$D20) -> 0
A21: Highly Proficient | B21: =COUNTIF(Database!D:D,"HP") -> 0 | D21: Junior High School | E21: =COUNTIF(Database!J:J,$D21) -> 0
A22: Distinguished | B22: =COUNTIF(Database!D:D,"D") -> 0 | D22: Senior High School | E22: =COUNTIF(Database!J:J,$D22) -> 0
A24: Position | B24: Count | D24: Area of Specialization | E24: Count
A25: Teacher I | B25: =COUNTIF(Database!C:C,$A25) -> 0 | D25: English | E25: =COUNTIF(Database!S:S,"TRUE") -> 0
A26: Teacher II | B26: =COUNTIF(Database!C:C,$A26) -> 0 | D26: Filipino | E26: =COUNTIF(Database!T:T,"TRUE") -> 0
A27: Teacher III | B27: =COUNTIF(Database!C:C,$A27) -> 0 | D27: Mathematics | E27: =COUNTIF(Database!U:U,"TRUE") -> 0
A28: Teacher IV | B28: =COUNTIF(Database!C:C,$A28) -> 0 | D28: General Science | E28: =COUNTIF(Database!V:V,"TRUE") -> 0
A29: Teacher V | B29: =COUNTIF(Database!C:C,$A29) -> 0 | D29: Biology | E29: =COUNTIF(Database!W:W,"TRUE") -> 0
A30: Teacher VI | B30: =COUNTIF(Database!C:C,$A30) -> 0 | D30: Chemistry | E30: =COUNTIF(Database!X:X,"TRUE") -> 0
A31: Teacher VII | B31: =COUNTIF(Database!C:C,$A31) -> 0 | D31: Physics | E31: =COUNTIF(Database!Y:Y,"TRUE") -> 0
A32: Master Teacher I | B32: =COUNTIF(Database!C:C,$A32) -> 0 | D32: Social Science | E32: =COUNTIF(Database!Z:Z,"TRUE") -> 0
A33: Master Teacher II | B33: =COUNTIF(Database!C:C,$A33) -> 0 | D33: Early Childhood Education | E33: =COUNTIF(Database!AA:AA,"TRUE") -> 0
A34: Master Teacher III | B34: =COUNTIF(Database!C:C,$A34) -> 0 | D34: Values Education | E34: =COUNTIF(Database!AB:AB,"TRUE") -> 0
A35: Master Teacher IV | B35: =COUNTIF(Database!C:C,$A35) -> 0 | D35: SPED | E35: =COUNTIF(Database!AC:AC,"TRUE") -> 0
A36: Master Teacher V | B36: =COUNTIF(Database!C:C,$A36) -> 0 | D36: Music | E36: =COUNTIF(Database!AD:AD,"TRUE") -> 0
D37: Arts | E37: =COUNTIF(Database!AE:AE,"TRUE") -> 0
A38: Employment Status | B38: Count | D38: PE | E38: =COUNTIF(Database!AF:AF,"TRUE") -> 0
A39: Regular Permanent | B39: =COUNTIF(Database!E:E,$A39) -> 0 | D39: Health | E39: =COUNTIF(Database!AG:AG,"TRUE") -> 0
A40: Provisional | B40: =COUNTIF(Database!E:E,$A40) -> 0 | D40: TLE/HE/TVL | E40: =COUNTIF(Database!AH:AH,"TRUE") -> 0
A41: Substitute | B41: =COUNTIF(Database!E:E,$A41) -> 0 | D41: Others | E41: =COUNTA(Database!AI:AI)-1 -> 0
A42: Contractual | B42: =COUNTIF(Database!E:E,$A42) -> 0
D43: Subjects Taught | E43: Count
A44: Age | B44: Count | D44: All Subjects | E44: =COUNTIF(Database!AJ:AJ,"TRUE") -> 0
A45: Under 25 years old | B45: =COUNTIF(Database!F:F,$A45) -> 0 | D45: MTB-MLE | E45: =COUNTIF(Database!AK:AK,"TRUE") -> 0
A46: 25-30 | B46: =COUNTIF(Database!F:F,$A46) -> 0 | D46: Madrasah ALIVE | E46: =COUNTIF(Database!AL:AL,"TRUE") -> 0
A47: 31-35 | B47: =COUNTIF(Database!F:F,$A47) -> 0 | D47: Filipino | E47: =COUNTIF(Database!AM:AM,"TRUE") -> 0
A48: 36-40 | B48: =COUNTIF(Database!F:F,$A48) -> 0 | D48: English | E48: =COUNTIF(Database!AN:AN,"TRUE") -> 0
A49: 41-45 | B49: =COUNTIF(Database!F:F,$A49) -> 0 | D49: Mathematics | E49: =COUNTIF(Database!AO:AO,"TRUE") -> 0
A50: 46-50 | B50: =COUNTIF(Database!F:F,$A50) -> 0 | D50: Science | E50: =COUNTIF(Database!AP:AP,"TRUE") -> 0
A51: 51-55 | B51: =COUNTIF(Database!F:F,$A51) -> 0 | D51: Araling Panlipunan | E51: =COUNTIF(Database!AQ:AQ,"TRUE") -> 0
A52: Over 55 years old | B52: =COUNTIF(Database!F:F,$A52) -> 0 | D52: GMRC / EsP | E52: =COUNTIF(Database!AR:AR,"TRUE") -> 0
D53: MAPEH | E53: =COUNTIF(Database!AS:AS,"TRUE") -> 0
A54: Sex | B54: Count | D54: Music and Arts | E54: =COUNTIF(Database!AT:AT,"TRUE") -> 0
A55: Male | B55: =COUNTIF(Database!G:G,$A55) -> 0 | D55: PE and Health | E55: =COUNTIF(Database!AU:AU,"TRUE") -> 0
A56: Female | B56: =COUNTIF(Database!G:G,$A56) -> 0 | D56: Makabansa | E56: =COUNTIF(Database!AV:AV,"TRUE") -> 0
D57: Languages / Reading and Literacy | E57: =COUNTIF(Database!AW:AW,"TRUE") -> 0
A58: Total Number of Years in Teaching | B58: Count | D58: TLE/EPP-HE | E58: =COUNTIF(Database!AX:AX,"TRUE") -> 0
A59: 0-3 years | B59: =COUNTIF(Database!H:H,$A59) -> 0 | D59: TLE/EPP-LE/Tech-Voc | E59: =COUNTIF(Database!AY:AY,"TRUE") -> 0
A60: 4-10 years | B60: =COUNTIF(Database!H:H,$A60) -> 0 | D60: ALS | E60: =COUNTIF(Database!AZ:AZ,"TRUE") -> 0
A61: More than 10 years | B61: =COUNTIF(Database!H:H,$A61) -> 0 | D61: IPED | E61: =COUNTIF(Database!BA:BA,"TRUE") -> 0
D62: Special Programs | E62: =COUNTIF(Database!BB:BB,"TRUE") -> 0
A63: Highest Degree Obtained | B63: Count | D63: Others | E63: =COUNTA(Database!BC:BC)-1 -> 0
A64: Bachelor's Degree | B64: =COUNTIF(Database!I:I,$A64) -> 0
A65: Master's Degree | B65: =COUNTIF(Database!I:I,$A65) -> 0
A66: Doctorate Degree | B66: =COUNTIF(Database!I:I,$A66) -> 0

Sheet Summary (hidden)
B1: Electronic Self-Assessment Tool
B2: SY 2025 - 2028
B4: BEGINNING TOWARDS PROFICIENT AND PROFICIENT TEACHERS
B6: INDICATORS - YEAR 1 | M6: Level of Capability | O6: Priority for Development
B7: Domain 1. Content Knowledge and Pedagogy
B8: 1.1.2 | C8: Applied knowledge of content within and across curriculum teaching areas | M8: =AVERAGE(INDIRECT("Database!"&S8&":"&S8)) ->  | N8: =VLOOKUP(M8,leveldesc,2,1) ->  | O8: =AVERAGE(INDIRECT("Database!"&U8&":"&U8)) ->  | P8: =VLOOKUP(O8,leveldesc,2,1) ->  | R8: =MATCH("BP Yr1 1.1.2 LC",Database!1:1,0) -> 68 | S8: =SUBSTITUTE(ADDRESS(1, R8, 4), "1", "") -> BP | T8: =MATCH("BP Yr1 1.1.2 PD",Database!1:1,0) -> 194 | U8: =SUBSTITUTE(ADDRESS(1, T8, 4), "1", "") -> GL
B9: 1.4.2 | C9: Used a range of teaching strategies that enhance learner achievement in literacy and numeracy skills | M9: =AVERAGE(INDIRECT("Database!"&S9&":"&S9)) ->  | N9: =VLOOKUP(M9,leveldesc,2,1) ->  | O9: =AVERAGE(INDIRECT("Database!"&U9&":"&U9)) ->  | P9: =VLOOKUP(O9,leveldesc,2,1) ->  | R9: =IF(C9<>"",R8+1,R8) -> 69 | S9: =SUBSTITUTE(ADDRESS(1, R9, 4), "1", "") -> BQ | T9: =IF(C9<>"",T8+1,T8) -> 195 | U9: =SUBSTITUTE(ADDRESS(1, T9, 4), "1", "") -> GM
B10: 1.5.2 | C10: Applied a range of teaching strategies to develop critical and creative thinking, as well as other higher-order thinking skills | N10: =VLOOKUP(M10,leveldesc,2,1) ->  | P10: =VLOOKUP(O10,leveldesc,2,1) ->  | R10: =IF(C10<>"",R9+1,R9) -> 70 | S10: =SUBSTITUTE(ADDRESS(1, R10, 4), "1", "") -> BR | T10: =IF(C10<>"",T9+1,T9) -> 196 | U10: =SUBSTITUTE(ADDRESS(1, T10, 4), "1", "") -> GN
B11: Domain 2. Learning Environment | R11: 70 | S11: BR | T11: 196 | U11: GN
B12: 2.3.2 | C12: Managed classroom structure to engage learners, individually or in groups, in meaningful exploration, discovery and hands-on activities within a range of physical learning environments | M12: =AVERAGE(INDIRECT("Database!"&S12&":"&S12)) ->  | N12: =VLOOKUP(M12,leveldesc,2,1) ->  | O12: =AVERAGE(INDIRECT("Database!"&U12&":"&U12)) ->  | P12: =VLOOKUP(O12,leveldesc,2,1) ->  | R12: 71 | S12: BS | T12: 197 | U12: GO
B13: 2.6.2 | C13: Managed learner behavior constructively by applying positive and non-violent discipline to ensure learning- focused environments | N13: =VLOOKUP(M13,leveldesc,2,1) ->  | P13: =VLOOKUP(O13,leveldesc,2,1) ->  | R13: 72 | S13: BT | T13: 198 | U13: GP
B14: Domain 3. Diversity of Learners | R14: 72 | S14: BT | T14: 198 | U14: GP
B15: 3.1.2 | C15: Used differentiated, developmentally appropriate learning experiences to address learners’ gender, needs, strengths, interests and experiences | M15: =AVERAGE(INDIRECT("Database!"&S15&":"&S15)) ->  | N15: =VLOOKUP(M15,leveldesc,2,1) ->  | O15: =AVERAGE(INDIRECT("Database!"&U15&":"&U15)) ->  | P15: =VLOOKUP(O15,leveldesc,2,1) ->  | R15: 73 | S15: BU | T15: 199 | U15: GQ
B16: Domain 4. Curriculum and Planning | R16: 73 | S16: BU | T16: 199 | U16: GQ
B17: 4.1.2 | C17: Planned, managed and implemented developmentally sequenced teaching and learning processes to meet curriculum requirements and varied teaching contexts | M17: =AVERAGE(INDIRECT("Database!"&S17&":"&S17)) ->  | N17: =VLOOKUP(M17,leveldesc,2,1) ->  | O17: =AVERAGE(INDIRECT("Database!"&U17&":"&U17)) ->  | P17: =VLOOKUP(O17,leveldesc,2,1) ->  | R17: 74 | S17: BV | T17: 200 | U17: GR
B18: 4.4.2 | C18: Participated in collegial discussions that use teacher and learner feedback to enrich teaching practice | N18: =VLOOKUP(M18,leveldesc,2,1) ->  | P18: =VLOOKUP(O18,leveldesc,2,1) ->  | R18: 75 | S18: BW | T18: 201 | U18: GS
B19: 4.5.2 | C19: Selected, developed, organized and used appropriate teaching and learning resources, including ICT, to address learning goals | N19: =VLOOKUP(M19,leveldesc,2,1) ->  | P19: =VLOOKUP(O19,leveldesc,2,1) ->  | R19: 76 | S19: BX | T19: 202 | U19: GT
B20: Domain 5. Assessment and Reporting | R20: 76 | S20: BX | T20: 202 | U20: GT
B21: 5.1.2 | C21: Designed, selected, organized and used diagnostic, formative and summative assessment strategies consistent with curriculum requirements | M21: =AVERAGE(INDIRECT("Database!"&S21&":"&S21)) ->  | N21: =VLOOKUP(M21,leveldesc,2,1) ->  | O21: =AVERAGE(INDIRECT("Database!"&U21&":"&U21)) ->  | P21: =VLOOKUP(O21,leveldesc,2,1) ->  | R21: 77 | S21: BY | T21: 203 | U21: GU
B22: 5.2.2 | C22: Monitored and evaluated learner progress and achievement using learner attainment data | N22: =VLOOKUP(M22,leveldesc,2,1) ->  | P22: =VLOOKUP(O22,leveldesc,2,1) ->  | R22: 78 | S22: BZ | T22: 204 | U22: GV
B23: 5.4.2 | C23: Communicated promptly and clearly the learners’ needs, progress and achievement to key stakeholders, including parents/guardians | N23: =VLOOKUP(M23,leveldesc,2,1) ->  | P23: =VLOOKUP(O23,leveldesc,2,1) ->  | R23: 79 | S23: CA | T23: 205 | U23: GW
B24: Domain 7. Personal Growth and Professional Development | R24: 79 | S24: CA | T24: 205 | U24: GW
B25: 7.1.2 | C25: Applied a personal philosophy of teaching that is learner-centered | M25: =AVERAGE(INDIRECT("Database!"&S25&":"&S25)) ->  | N25: =VLOOKUP(M25,leveldesc,2,1) ->  | O25: =AVERAGE(INDIRECT("Database!"&U25&":"&U25)) ->  | P25: =VLOOKUP(O25,leveldesc,2,1) ->  | R25: 80 | S25: CB | T25: 206 | U25: GX
B26: 7.5.2 | C26: Set professional development goals based on the Philippine Professional Standards for Teachers | N26: =VLOOKUP(M26,leveldesc,2,1) ->  | P26: =VLOOKUP(O26,leveldesc,2,1) ->  | R26: 81 | S26: CC | T26: 207 | U26: GY
R27: 81 | S27: CC | T27: 207 | U27: GY
B28: INDICATORS - YEAR 2 | M28: Level of Capability | O28: Priority for Development | R28: 81 | S28: CC | T28: 207 | U28: GY
B29: Domain 1. Content Knowledge and Pedagogy | R29: 81 | S29: CC | T29: 207 | U29: GY
B30: 1.1.2 | C30: Applied knowledge of content within and across curriculum teaching areas | M30: =AVERAGE(INDIRECT("Database!"&S30&":"&S30)) ->  | N30: =VLOOKUP(M30,leveldesc,2,1) ->  | O30: =AVERAGE(INDIRECT("Database!"&U30&":"&U30)) ->  | P30: =VLOOKUP(O30,leveldesc,2,1) ->  | R30: 82 | S30: CD | T30: 208 | U30: GZ
B31: 1.4.2 | C31: Used a range of teaching strategies that enhance learner achievement in literacy and numeracy skills | N31: =VLOOKUP(M31,leveldesc,2,1) ->  | P31: =VLOOKUP(O31,leveldesc,2,1) ->  | R31: 83 | S31: CE | T31: 209 | U31: HA
B32: 1.5.2 | C32: Applied a range of teaching strategies to develop critical and creative thinking, as well as other higher-order thinking skills | N32: =VLOOKUP(M32,leveldesc,2,1) ->  | P32: =VLOOKUP(O32,leveldesc,2,1) ->  | R32: 84 | S32: CF | T32: 210 | U32: HB
B33: 1.6.2 | C33: Displayed proficient use of Mother Tongue, Filipino and English to facilitate teaching and learning | N33: =VLOOKUP(M33,leveldesc,2,1) ->  | P33: =VLOOKUP(O33,leveldesc,2,1) ->  | R33: 85 | S33: CG | T33: 211 | U33: HC
B34: Domain 2. Learning Environment | R34: 85 | S34: CG | T34: 211 | U34: HC
B35: 2.1.2 | C35: Established safe and secure learning environments to enhance learning through the consistent implementation of policies, guidelines and procedures | M35: =AVERAGE(INDIRECT("Database!"&S35&":"&S35)) ->  | N35: =VLOOKUP(M35,leveldesc,2,1) ->  | O35: =AVERAGE(INDIRECT("Database!"&U35&":"&U35)) ->  | P35: =VLOOKUP(O35,leveldesc,2,1) ->  | R35: 86 | S35: CH | T35: 212 | U35: HD
B36: 2.2.2 | C36: Maintained learning environments that promote fairness, respect and care to encourage learning | N36: =VLOOKUP(M36,leveldesc,2,1) ->  | P36: =VLOOKUP(O36,leveldesc,2,1) ->  | R36: 87 | S36: CI | T36: 213 | U36: HE
B37: Domain 3. Diversity of Learners | R37: 87 | S37: CI | T37: 213 | U37: HE
B38: 3.2.2 | C38: Established a learner- centered culture by using teaching strategies that respond to their linguistic, cultural, socioeconomic and religious backgrounds | M38: =AVERAGE(INDIRECT("Database!"&S38&":"&S38)) ->  | N38: =VLOOKUP(M38,leveldesc,2,1) ->  | O38: =AVERAGE(INDIRECT("Database!"&U38&":"&U38)) ->  | P38: =VLOOKUP(O38,leveldesc,2,1) ->  | R38: 88 | S38: CJ | T38: 214 | U38: HF
B39: 3.5.2 | C39: Adapted and used culturally appropriate teaching strategies to address the needs of learners from indigenous groups | N39: =VLOOKUP(M39,leveldesc,2,1) ->  | P39: =VLOOKUP(O39,leveldesc,2,1) ->  | R39: 89 | S39: CK | T39: 215 | U39: HG
B40: Domain 4. Curriculum and Planning | R40: 89 | S40: CK | T40: 215 | U40: HG
B41: 4.2.2 | C41: Set achievable and appropriate learning outcomes that are aligned with learning competencies | M41: =AVERAGE(INDIRECT("Database!"&S41&":"&S41)) ->  | N41: =VLOOKUP(M41,leveldesc,2,1) ->  | O41: =AVERAGE(INDIRECT("Database!"&U41&":"&U41)) ->  | P41: =VLOOKUP(O41,leveldesc,2,1) ->  | R41: 90 | S41: CL | T41: 216 | U41: HH
B42: Domain 5. Assessment and Reporting | R42: 90 | S42: CL | T42: 216 | U42: HH
B43: 5.3.2 | C43: Used strategies for providing timely, accurate and constructive feedback to improve learner performance | M43: =AVERAGE(INDIRECT("Database!"&S43&":"&S43)) ->  | N43: =VLOOKUP(M43,leveldesc,2,1) ->  | O43: =AVERAGE(INDIRECT("Database!"&U43&":"&U43)) ->  | P43: =VLOOKUP(O43,leveldesc,2,1) ->  | R43: 91 | S43: CM | T43: 217 | U43: HI
B44: 5.5.2 | C44: Utilized assessment data to inform the modification of teaching and learning practices and programs | N44: =VLOOKUP(M44,leveldesc,2,1) ->  | P44: =VLOOKUP(O44,leveldesc,2,1) ->  | R44: 92 | S44: CN | T44: 218 | U44: HJ
B45: Domain 6. Community Linkages and Professional Engagement | R45: 92 | S45: CN | T45: 218 | U45: HJ
B46: 6.2.2 | C46: Built relationships with parents/ guardians and the wider school community to facilitate involvement in the educative process | M46: =AVERAGE(INDIRECT("Database!"&S46&":"&S46)) ->  | N46: =VLOOKUP(M46,leveldesc,2,1) ->  | O46: =AVERAGE(INDIRECT("Database!"&U46&":"&U46)) ->  | P46: =VLOOKUP(O46,leveldesc,2,1) ->  | R46: 93 | S46: CO | T46: 219 | U46: HK
B47: Domain 7. Personal Growth and Professional Development | R47: 93 | S47: CO | T47: 219 | U47: HK
B48: 7.3.2 | C48: Participated in professional networks to share knowledge and to enhance practice | M48: =AVERAGE(INDIRECT("Database!"&S48&":"&S48)) ->  | N48: =VLOOKUP(M48,leveldesc,2,1) ->  | O48: =AVERAGE(INDIRECT("Database!"&U48&":"&U48)) ->  | P48: =VLOOKUP(O48,leveldesc,2,1) ->  | R48: 94 | S48: CP | T48: 220 | U48: HL
B49: 7.4.2 | C49: Developed a personal improvement plan based on reflection of one’s practice and ongoing professional learning | N49: =VLOOKUP(M49,leveldesc,2,1) ->  | P49: =VLOOKUP(O49,leveldesc,2,1) ->  | R49: 95 | S49: CQ | T49: 221 | U49: HM
R50: 95 | S50: CQ | T50: 221 | U50: HM
B51: INDICATORS - YEAR 3 | M51: Level of Capability | O51: Priority for Development | R51: 95 | S51: CQ | T51: 221 | U51: HM
B52: Domain 1. Content Knowledge and Pedagogy | R52: 95 | S52: CQ | T52: 221 | U52: HM
B53: 1.1.2 | C53: Applied knowledge of content within and across curriculum teaching areas | M53: =AVERAGE(INDIRECT("Database!"&S53&":"&S53)) ->  | N53: =VLOOKUP(M53,leveldesc,2,1) ->  | O53: =AVERAGE(INDIRECT("Database!"&U53&":"&U53)) ->  | P53: =VLOOKUP(O53,leveldesc,2,1) ->  | R53: 96 | S53: CR | T53: 222 | U53: HN
B54: 1.2.2 | C54: Used research-based knowledge and principles of teaching and learning to enhance professional practice | N54: =VLOOKUP(M54,leveldesc,2,1) ->  | P54: =VLOOKUP(O54,leveldesc,2,1) ->  | R54: 97 | S54: CS | T54: 223 | U54: HO
B55: 1.3.2 | C55: Ensured the positive use of ICT to facilitate the teaching and learning process | N55: =VLOOKUP(M55,leveldesc,2,1) ->  | P55: =VLOOKUP(O55,leveldesc,2,1) ->  | R55: 98 | S55: CT | T55: 224 | U55: HP
B56: 1.4.2 | C56: Used a range of teaching strategies that enhance learner achievement in literacy and numeracy skills | N56: =VLOOKUP(M56,leveldesc,2,1) ->  | P56: =VLOOKUP(O56,leveldesc,2,1) ->  | R56: 99 | S56: CU | T56: 225 | U56: HQ
B57: 1.7.2 | C57: Used effective verbal and non-verbal classroom communication strategies to support learner understanding, participation, engagement and achievement | N57: =VLOOKUP(M57,leveldesc,2,1) ->  | P57: =VLOOKUP(O57,leveldesc,2,1) ->  | R57: 100 | S57: CV | T57: 226 | U57: HR
B58: Domain 2. Learning Environment | R58: 100 | S58: CV | T58: 226 | U58: HR
B59: 2.4.2 | C59: Maintained learning environments that nurture and inspire learners to participate, cooperate and collaborate in continued learning | M59: =AVERAGE(INDIRECT("Database!"&S59&":"&S59)) ->  | N59: =VLOOKUP(M59,leveldesc,2,1) ->  | O59: =AVERAGE(INDIRECT("Database!"&U59&":"&U59)) ->  | P59: =VLOOKUP(O59,leveldesc,2,1) ->  | R59: 101 | S59: CW | T59: 227 | U59: HS
B60: 2.5.2 | C60: Applied a range of successful strategies that maintain learning environments that motivate learners to work productively by assuming responsibility for their own learning | N60: =VLOOKUP(M60,leveldesc,2,1) ->  | P60: =VLOOKUP(O60,leveldesc,2,1) ->  | R60: 102 | S60: CX | T60: 228 | U60: HT
B61: Domain 3. Diversity of Learners | R61: 102 | S61: CX | T61: 228 | U61: HT
B62: 3.3.2 | C62: Designed, adapted and implemented teaching strategies that are responsive to learners with disabilities, giftedness and talents | M62: =AVERAGE(INDIRECT("Database!"&S62&":"&S62)) ->  | N62: =VLOOKUP(M62,leveldesc,2,1) ->  | O62: =AVERAGE(INDIRECT("Database!"&U62&":"&U62)) ->  | P62: =VLOOKUP(O62,leveldesc,2,1) ->  | R62: 103 | S62: CY | T62: 229 | U62: HU
B63: 3.4.2 | C63: Planned and delivered teaching strategies that are responsive to the special educational needs of learners in difficult circumstances*, including: geographic isolation; chronic illness; displacement due to armed conflict, urban resettlement or disasters; child abuse and child labor practices | N63: =VLOOKUP(M63,leveldesc,2,1) ->  | P63: =VLOOKUP(O63,leveldesc,2,1) ->  | R63: 104 | S63: CZ | T63: 230 | U63: HV
B64: Domain 4. Curriculum and Planning | R64: 104 | S64: CZ | T64: 230 | U64: HV
B65: 4.3.2 | C65: Adapted and implemented learning programs that ensure relevance and responsiveness to the needs of all learners | M65: =AVERAGE(INDIRECT("Database!"&S65&":"&S65)) ->  | N65: =VLOOKUP(M65,leveldesc,2,1) ->  | O65: =AVERAGE(INDIRECT("Database!"&U65&":"&U65)) ->  | P65: =VLOOKUP(O65,leveldesc,2,1) ->  | R65: 105 | S65: DA | T65: 231 | U65: HW
B66: Domain 6. Community Linkages and Professional Engagement | R66: 105 | S66: DA | T66: 231 | U66: HW
B67: 6.1.2 | C67: Maintained learning environments that are responsive to community contexts | M67: =AVERAGE(INDIRECT("Database!"&S67&":"&S67)) ->  | N67: =VLOOKUP(M67,leveldesc,2,1) ->  | O67: =AVERAGE(INDIRECT("Database!"&U67&":"&U67)) ->  | P67: =VLOOKUP(O67,leveldesc,2,1) ->  | R67: 106 | S67: DB | T67: 232 | U67: HX
B68: 6.3.2 | C68: Reviewed regularly personal teaching practice using existing laws and regulations that apply to the teaching profession and the responsibilities specified in the Code of Ethics for Professional Teachers | N68: =VLOOKUP(M68,leveldesc,2,1) ->  | P68: =VLOOKUP(O68,leveldesc,2,1) ->  | R68: 107 | S68: DC | T68: 233 | U68: HY
B69: 6.4.2 | C69: Complied with and implemented school policies and procedures consistently to foster harmonious relationships with learners, parents, and other stakeholders | N69: =VLOOKUP(M69,leveldesc,2,1) ->  | P69: =VLOOKUP(O69,leveldesc,2,1) ->  | R69: 108 | S69: DD | T69: 234 | U69: HZ
B70: Domain 7. Personal Growth and Professional Development | R70: 108 | S70: DD | T70: 234 | U70: HZ
B71: 7.2.2 | C71: Adopted practices that uphold the dignity of teaching as a profession by exhibiting qualities such as caring attitude, respect and integrity | M71: =AVERAGE(INDIRECT("Database!"&S71&":"&S71)) ->  | N71: =VLOOKUP(M71,leveldesc,2,1) ->  | O71: =AVERAGE(INDIRECT("Database!"&U71&":"&U71)) ->  | P71: =VLOOKUP(O71,leveldesc,2,1) ->  | R71: 109 | S71: DE | T71: 235 | U71: IA
R72: 109 | S72: DE | T72: 235 | U72: IA
B73: HIGHLY PROFICIENT TEACHERS | R73: 109 | S73: DE | T73: 235 | U73: IA
R74: =IF(C74<>"",R73+1,R73) -> 109 | S74: =SUBSTITUTE(ADDRESS(1, R74, 4), "1", "") -> DE | T74: =IF(C74<>"",T73+1,T73) -> 235 | U74: =SUBSTITUTE(ADDRESS(1, T74, 4), "1", "") -> IA
B75: INDICATORS - YEAR 1 | M75: Level of Capability | O75: Priority for Development | R75: 109 | S75: DE | T75: 235 | U75: IA
B76: Domain 1. Content Knowledge and Pedagogy | R76: 109 | S76: DE | T76: 235 | U76: IA
B77: 1.1.3 | C77: Modelled effective applications of content knowledge within and across curriculum teaching areas | M77: =AVERAGE(INDIRECT("Database!"&S77&":"&S77)) ->  | N77: =VLOOKUP(M77,leveldesc,2,1) ->  | O77: =AVERAGE(INDIRECT("Database!"&U77&":"&U77)) ->  | P77: =VLOOKUP(O77,leveldesc,2,1) ->  | R77: 110 | S77: DF | T77: 236 | U77: IB
B78: 1.4.3 | C78: Evaluated with colleagues the effectiveness of teaching strategies that promote learner achievement in literacy and numeracy | N78: =VLOOKUP(M78,leveldesc,2,1) ->  | P78: =VLOOKUP(O78,leveldesc,2,1) ->  | R78: 111 | S78: DG | T78: 237 | U78: IC
B79: 1.5.3 | C79: Developed and applied effective teaching strategies to promote critical and creative thinking, as well as other higher-order thinking skills | N79: =VLOOKUP(M79,leveldesc,2,1) ->  | P79: =VLOOKUP(O79,leveldesc,2,1) ->  | R79: 112 | S79: DH | T79: 238 | U79: ID
B80: Domain 2. Learning Environment | R80: 112 | S80: DH | T80: 238 | U80: ID
B81: 2.3.3 | C81: Worked with colleagues to model and share effective techniques in the management of classroom structure to engage learners, individually or in groups, in meaningful exploration, discovery and hands-on activities within a range of physical learning environments | M81: =AVERAGE(INDIRECT("Database!"&S81&":"&S81)) ->  | N81: =VLOOKUP(M81,leveldesc,2,1) ->  | O81: =AVERAGE(INDIRECT("Database!"&U81&":"&U81)) ->  | P81: =VLOOKUP(O81,leveldesc,2,1) ->  | R81: 113 | S81: DI | T81: 239 | U81: IE
B82: 2.6.3 | C82: Exhibited effective and constructive behavior management skills by applying positive and non-violent discipline to ensure learning- focused environments | N82: =VLOOKUP(M82,leveldesc,2,1) ->  | P82: =VLOOKUP(O82,leveldesc,2,1) ->  | R82: 114 | S82: DJ | T82: 240 | U82: IF
B83: Domain 3. Diversity of Learners | R83: 114 | S83: DJ | T83: 240 | U83: IF
B84: 3.1.3 | C84: Worked with colleagues to share differentiated, developmentally appropriate opportunities to address learners’ differences in gender, needs, strengths, interests and experiences | M84: =AVERAGE(INDIRECT("Database!"&S84&":"&S84)) ->  | N84: =VLOOKUP(M84,leveldesc,2,1) ->  | O84: =AVERAGE(INDIRECT("Database!"&U84&":"&U84)) ->  | P84: =VLOOKUP(O84,leveldesc,2,1) ->  | R84: 115 | S84: DK | T84: 241 | U84: IG
B85: Domain 4. Curriculum and Planning | R85: 115 | S85: DK | T85: 241 | U85: IG
B86: 4.1.3 | C86: Developed and applied effective strategies in the planning and management of developmentally sequenced teaching and learning processes to meet curriculum requirements and varied teaching contexts | M86: =AVERAGE(INDIRECT("Database!"&S86&":"&S86)) ->  | N86: =VLOOKUP(M86,leveldesc,2,1) ->  | O86: =AVERAGE(INDIRECT("Database!"&U86&":"&U86)) ->  | P86: =VLOOKUP(O86,leveldesc,2,1) ->  | R86: 116 | S86: DL | T86: 242 | U86: IH
B87: 4.4.3 | C87: Reviewed with colleagues, teacher and learner feedback to plan, facilitate and enrich teaching practice | N87: =VLOOKUP(M87,leveldesc,2,1) ->  | P87: =VLOOKUP(O87,leveldesc,2,1) ->  | R87: 117 | S87: DM | T87: 243 | U87: II
B88: 4.5.3 | C88: Advised and guided colleagues in the selection, organization, development and use of appropriate teaching and learning resources, including ICT, to address specific learning goals | N88: =VLOOKUP(M88,leveldesc,2,1) ->  | P88: =VLOOKUP(O88,leveldesc,2,1) ->  | R88: 118 | S88: DN | T88: 244 | U88: IJ
B89: Domain 5. Assessment and Reporting | R89: 118 | S89: DN | T89: 244 | U89: IJ
B90: 5.1.3 | C90: Worked collaboratively with colleagues to review the design, selection, organization and use of a range of effective diagnostic, formative and summative assessment strategies consistent with curriculum requirements | M90: =AVERAGE(INDIRECT("Database!"&S90&":"&S90)) ->  | N90: =VLOOKUP(M90,leveldesc,2,1) ->  | O90: =AVERAGE(INDIRECT("Database!"&U90&":"&U90)) ->  | P90: =VLOOKUP(O90,leveldesc,2,1) ->  | R90: 119 | S90: DO | T90: 245 | U90: IK
B91: 5.2.3 | C91: Interpreted collaboratively monitoring and evaluation strategies of attainment data to support learner progress and achievement | N91: =VLOOKUP(M91,leveldesc,2,1) ->  | P91: =VLOOKUP(O91,leveldesc,2,1) ->  | R91: 120 | S91: DP | T91: 246 | U91: IL
B92: 5.4.3 | C92: Applied skills in the effective communication of learner needs, progress and achievement to key stakeholders, including parents/guardians | N92: =VLOOKUP(M92,leveldesc,2,1) ->  | P92: =VLOOKUP(O92,leveldesc,2,1) ->  | R92: 121 | S92: DQ | T92: 247 | U92: IM
B93: Domain 7. Personal Growth and Professional Development | R93: 121 | S93: DQ | T93: 247 | U93: IM
B94: 7.1.3 | C94: Manifested a learner-centered teaching philosophy in various aspects of practice and support colleagues in enhancing their own learner-centered teaching philosophy | M94: =AVERAGE(INDIRECT("Database!"&S94&":"&S94)) ->  | N94: =VLOOKUP(M94,leveldesc,2,1) ->  | O94: =AVERAGE(INDIRECT("Database!"&U94&":"&U94)) ->  | P94: =VLOOKUP(O94,leveldesc,2,1) ->  | R94: 122 | S94: DR | T94: 248 | U94: IN
B95: 7.5.3 | C95: Reflected on the Philippine Professional Standards for Teachers to plan personal professional development goals and assist colleagues in planning and achieving their own goals | N95: =VLOOKUP(M95,leveldesc,2,1) ->  | P95: =VLOOKUP(O95,leveldesc,2,1) ->  | R95: 123 | S95: DS | T95: 249 | U95: IO
R96: 123 | S96: DS | T96: 249 | U96: IO
B97: INDICATORS - YEAR 2 | M97: Level of Capability | O97: Priority for Development | R97: 123 | S97: DS | T97: 249 | U97: IO
B98: Domain 1. Content Knowledge and Pedagogy | R98: 123 | S98: DS | T98: 249 | U98: IO
B99: 1.1.3 | C99: Modelled effective applications of content knowledge within and across curriculum teaching areas | M99: =AVERAGE(INDIRECT("Database!"&S99&":"&S99)) ->  | N99: =VLOOKUP(M99,leveldesc,2,1) ->  | O99: =AVERAGE(INDIRECT("Database!"&U99&":"&U99)) ->  | P99: =VLOOKUP(O99,leveldesc,2,1) ->  | R99: 124 | S99: DT | T99: 250 | U99: IP
B100: 1.4.3 | C100: Evaluated with colleagues the effectiveness of teaching strategies that promote learner achievement in literacy and numeracy | N100: =VLOOKUP(M100,leveldesc,2,1) ->  | P100: =VLOOKUP(O100,leveldesc,2,1) ->  | R100: 125 | S100: DU | T100: 251 | U100: IQ
B101: 1.5.3 | C101: Developed and applied effective teaching strategies to promote critical and creative thinking, as well as other higher-order thinking skills | N101: =VLOOKUP(M101,leveldesc,2,1) ->  | P101: =VLOOKUP(O101,leveldesc,2,1) ->  | R101: 126 | S101: DV | T101: 252 | U101: IR
B102: 1.6.3 | C102: Modelled and supported colleagues in the proficient use of Mother Tongue, Filipino and English to improve teaching and learning, as well as to develop learners’ pride of their language, heritage and culture | N102: =VLOOKUP(M102,leveldesc,2,1) ->  | P102: =VLOOKUP(O102,leveldesc,2,1) ->  | R102: 127 | S102: DW | T102: 253 | U102: IS
B103: Domain 2. Learning Environment | R103: 127 | S103: DW | T103: 253 | U103: IS
B104: 2.1.3 | C104: Exhibited effective strategies that ensure safe and secure learning environments to enhance learning through the consistent implementation of policies, guidelines and procedures | M104: =AVERAGE(INDIRECT("Database!"&S104&":"&S104)) ->  | N104: =VLOOKUP(M104,leveldesc,2,1) ->  | O104: =AVERAGE(INDIRECT("Database!"&U104&":"&U104)) ->  | P104: =VLOOKUP(O104,leveldesc,2,1) ->  | R104: 128 | S104: DX | T104: 254 | U104: IT
B105: 2.2.3 | C105: Exhibited effective practices to foster learning environments that promote fairness, respect and care to encourage learning | N105: =VLOOKUP(M105,leveldesc,2,1) ->  | P105: =VLOOKUP(O105,leveldesc,2,1) ->  | R105: 129 | S105: DY | T105: 255 | U105: IU
B106: Domain 3. Diversity of Learners | R106: 129 | S106: DY | T106: 255 | U106: IU
B107: 3.2.3 | C107: Exhibited a learner-centered culture that promotes success by using effective teaching strategies that respond to their linguistic, cultural, socioeconomic and religious backgrounds | M107: =AVERAGE(INDIRECT("Database!"&S107&":"&S107)) ->  | N107: =VLOOKUP(M107,leveldesc,2,1) ->  | O107: =AVERAGE(INDIRECT("Database!"&U107&":"&U107)) ->  | P107: =VLOOKUP(O107,leveldesc,2,1) ->  | R107: 130 | S107: DZ | T107: 256 | U107: IV
B108: 3.5.3 | C108: Developed and applied teaching strategies to address effectively the needs of learners from indigenous groups | N108: =VLOOKUP(M108,leveldesc,2,1) ->  | P108: =VLOOKUP(O108,leveldesc,2,1) ->  | R108: 131 | S108: EA | T108: 257 | U108: IW
B109: Domain 4. Curriculum and Planning | R109: 131 | S109: EA | T109: 257 | U109: IW
B110: 4.2.3 | C110: Modelled to colleagues the setting of achievable and challenging learning outcomes that are aligned with learning competencies to cultivate a culture of excellence for all learners | M110: =AVERAGE(INDIRECT("Database!"&S110&":"&S110)) ->  | N110: =VLOOKUP(M110,leveldesc,2,1) ->  | O110: =AVERAGE(INDIRECT("Database!"&U110&":"&U110)) ->  | P110: =VLOOKUP(O110,leveldesc,2,1) ->  | R110: 132 | S110: EB | T110: 258 | U110: IX
B111: Domain 5. Assessment and Reporting | R111: 132 | S111: EB | T111: 258 | U111: IX
B112: 5.3.3 | C112: Used effective strategies for providing timely, accurate and constructive feedback to encourage learners to reflect on and improve their own learning | M112: =AVERAGE(INDIRECT("Database!"&S112&":"&S112)) ->  | N112: =VLOOKUP(M112,leveldesc,2,1) ->  | O112: =AVERAGE(INDIRECT("Database!"&U112&":"&U112)) ->  | P112: =VLOOKUP(O112,leveldesc,2,1) ->  | R112: 133 | S112: EC | T112: 259 | U112: IY
B113: 5.5.3 | C113: Worked collaboratively with colleagues to analyze and utilize assessment data to modify practices and programs to further support learner progress and achievement | N113: =VLOOKUP(M113,leveldesc,2,1) ->  | P113: =VLOOKUP(O113,leveldesc,2,1) ->  | R113: 134 | S113: ED | T113: 260 | U113: IZ
B114: Domain 6. Community Linkages and Professional Engagement | R114: 134 | S114: ED | T114: 260 | U114: IZ
B115: 6.2.3 | C115: Guided colleagues to strengthen relationships with parents/ guardians and the wider school community to maximize their involvement in the educative process | M115: =AVERAGE(INDIRECT("Database!"&S115&":"&S115)) ->  | N115: =VLOOKUP(M115,leveldesc,2,1) ->  | O115: =AVERAGE(INDIRECT("Database!"&U115&":"&U115)) ->  | P115: =VLOOKUP(O115,leveldesc,2,1) ->  | R115: 135 | S115: EE | T115: 261 | U115: JA
B116: Domain 7. Personal Growth and Professional Development | R116: 135 | S116: EE | T116: 261 | U116: JA
B117: 7.3.3 | C117: Contributed actively to professional networks within and between schools to improve knowledge and to enhance practice | M117: =AVERAGE(INDIRECT("Database!"&S117&":"&S117)) ->  | N117: =VLOOKUP(M117,leveldesc,2,1) ->  | O117: =AVERAGE(INDIRECT("Database!"&U117&":"&U117)) ->  | P117: =VLOOKUP(O117,leveldesc,2,1) ->  | R117: 136 | S117: EF | T117: 262 | U117: JB
B118: 7.4.3 | C118: Initiated professional reflections and promote learning opportunities with colleagues to improve practice | N118: =VLOOKUP(M118,leveldesc,2,1) ->  | P118: =VLOOKUP(O118,leveldesc,2,1) ->  | R118: 137 | S118: EG | T118: 263 | U118: JC
R119: 137 | S119: EG | T119: 263 | U119: JC
B120: INDICATORS - YEAR 3 | M120: Level of Capability | O120: Priority for Development | R120: 137 | S120: EG | T120: 263 | U120: JC
B121: Domain 1. Content Knowledge and Pedagogy | R121: 137 | S121: EG | T121: 263 | U121: JC
B122: 1.1.3 | C122: Modelled effective applications of content knowledge within and across curriculum teaching areas | M122: =AVERAGE(INDIRECT("Database!"&S122&":"&S122)) ->  | N122: =VLOOKUP(M122,leveldesc,2,1) ->  | O122: =AVERAGE(INDIRECT("Database!"&U122&":"&U122)) ->  | P122: =VLOOKUP(O122,leveldesc,2,1) ->  | R122: 138 | S122: EH | T122: 264 | U122: JD
B123: 1.2.3 | C123: Collaborated with colleagues in the conduct and application of research to enrich knowledge of content and pedagogy | N123: =VLOOKUP(M123,leveldesc,2,1) ->  | P123: =VLOOKUP(O123,leveldesc,2,1) ->  | R123: 139 | S123: EI | T123: 265 | U123: JE
B124: 1.3.3 | C124: Promoted effective strategies in the positive use of ICT to facilitate the teaching and learning process | N124: =VLOOKUP(M124,leveldesc,2,1) ->  | P124: =VLOOKUP(O124,leveldesc,2,1) ->  | R124: 140 | S124: EJ | T124: 266 | U124: JF
B125: 1.4.3 | C125: Evaluated with colleagues the effectiveness of teaching strategies that promote learner achievement in literacy and numeracy | N125: =VLOOKUP(M125,leveldesc,2,1) ->  | P125: =VLOOKUP(O125,leveldesc,2,1) ->  | R125: 141 | S125: EK | T125: 267 | U125: JG
B126: 1.7.3 | C126: Displayed a wide range of effective verbal and non-verbal classroom communication strategies to support learner understanding, participation, engagement and achievement | N126: =VLOOKUP(M126,leveldesc,2,1) ->  | P126: =VLOOKUP(O126,leveldesc,2,1) ->  | R126: 142 | S126: EL | T126: 268 | U126: JH
B127: Domain 2. Learning Environment | R127: 142 | S127: EL | T127: 268 | U127: JH
B128: 2.4.3 | C128: Worked with colleagues to share successful strategies that sustain supportive learning environments that nurture and inspire learners to participate, cooperate and collaborate in continued learning | M128: =AVERAGE(INDIRECT("Database!"&S128&":"&S128)) ->  | N128: =VLOOKUP(M128,leveldesc,2,1) ->  | O128: =AVERAGE(INDIRECT("Database!"&U128&":"&U128)) ->  | P128: =VLOOKUP(O128,leveldesc,2,1) ->  | R128: 143 | S128: EM | T128: 269 | U128: JI
B129: 2.5.3 | C129: Modelled successful strategies and supported colleagues in promoting learning environments that effectively motivate learners to work productively by assuming responsibility for their own learning | N129: =VLOOKUP(M129,leveldesc,2,1) ->  | P129: =VLOOKUP(O129,leveldesc,2,1) ->  | R129: 144 | S129: EN | T129: 270 | U129: JJ
B130: Domain 3. Diversity of Learners | R130: 144 | S130: EN | T130: 270 | U130: JJ
B131: 3.3.3 | C131: Assisted colleagues to design, adapt and implement teaching strategies that are responsive to learners with disabilities, giftedness and talents | M131: =AVERAGE(INDIRECT("Database!"&S131&":"&S131)) ->  | N131: =VLOOKUP(M131,leveldesc,2,1) ->  | O131: =AVERAGE(INDIRECT("Database!"&U131&":"&U131)) ->  | P131: =VLOOKUP(O131,leveldesc,2,1) ->  | R131: 145 | S131: EO | T131: 271 | U131: JK
B132: 3.4.3 | C132: Evaluated with colleagues teaching strategies that are responsive to the special educational needs of learners in difficult circumstances*, including: geographic isolation; chronic illness; displacement due to armed conflict, urban resettlement or disasters; child abuse and child labor practices | N132: =VLOOKUP(M132,leveldesc,2,1) ->  | P132: =VLOOKUP(O132,leveldesc,2,1) ->  | R132: 146 | S132: EP | T132: 272 | U132: JL
B133: Domain 4. Curriculum and Planning | R133: 146 | S133: EP | T133: 272 | U133: JL
B134: 4.3.3 | C134: Worked collaboratively with colleagues to evaluate the design of learning programs that develop the knowledge and skills of learners at different ability levels | M134: =AVERAGE(INDIRECT("Database!"&S134&":"&S134)) ->  | N134: =VLOOKUP(M134,leveldesc,2,1) ->  | O134: =AVERAGE(INDIRECT("Database!"&U134&":"&U134)) ->  | P134: =VLOOKUP(O134,leveldesc,2,1) ->  | R134: 147 | S134: EQ | T134: 273 | U134: JM
B135: Domain 6. Community Linkages and Professional Engagement | R135: 147 | S135: EQ | T135: 273 | U135: JM
B136: 6.1.3 | C136: Reflected on and evaluated learning environments that are responsive to community contexts | M136: =AVERAGE(INDIRECT("Database!"&S136&":"&S136)) ->  | N136: =VLOOKUP(M136,leveldesc,2,1) ->  | O136: =AVERAGE(INDIRECT("Database!"&U136&":"&U136)) ->  | P136: =VLOOKUP(O136,leveldesc,2,1) ->  | R136: 148 | S136: ER | T136: 274 | U136: JN
B137: 6.3.3 | C137: Discussed with colleagues teaching and learning practices that apply existing codes, laws and regulations that apply to the teaching profession, and the responsibilities specified in the Code of Ethics for Professional Teachers | N137: =VLOOKUP(M137,leveldesc,2,1) ->  | P137: =VLOOKUP(O137,leveldesc,2,1) ->  | R137: 149 | S137: ES | T137: 275 | U137: JO
B138: 6.4.3 | C138: Exhibited commitment to and supported teachers in the implementation of school policies and procedures to foster harmonious relationships with learners, parents and other stakeholders | N138: =VLOOKUP(M138,leveldesc,2,1) ->  | P138: =VLOOKUP(O138,leveldesc,2,1) ->  | R138: =IF(C138<>"",R137+1,R137) -> 150 | S138: =SUBSTITUTE(ADDRESS(1, R138, 4), "1", "") -> ET | T138: =IF(C138<>"",T137+1,T137) -> 276 | U138: =SUBSTITUTE(ADDRESS(1, T138, 4), "1", "") -> JP
B139: Domain 7. Personal Growth and Professional Development | R139: 150 | S139: ET | T139: 276 | U139: JP
B140: 7.2.3 | C140: Identified and utilized personal professional strengths to uphold the dignity of teaching as a profession to help build a positive teaching and learning culture within the school | M140: =AVERAGE(INDIRECT("Database!"&S140&":"&S140)) ->  | N140: =VLOOKUP(M140,leveldesc,2,1) ->  | O140: =AVERAGE(INDIRECT("Database!"&U140&":"&U140)) ->  | P140: =VLOOKUP(O140,leveldesc,2,1) ->  | R140: 151 | S140: EU | T140: 277 | U140: JQ
R141: 151 | S141: EU | T141: 277 | U141: JQ
B142: DISTINGUISHED TEACHERS | R142: 151 | S142: EU | T142: 277 | U142: JQ
R143: 151 | S143: EU | T143: 277 | U143: JQ
B144: INDICATORS - YEAR 1 | M144: Level of Capability | O144: Priority for Development | R144: 151 | S144: EU | T144: 277 | U144: JQ
B145: Domain 1. Content Knowledge and Pedagogy | R145: 151 | S145: EU | T145: 277 | U145: JQ
B146: 1.1.4 | C146: Modelled exemplary practice to improve the applications of content knowledge within and across curriculum teaching areas. | M146: =AVERAGE(INDIRECT("Database!"&S146&":"&S146)) ->  | N146: =VLOOKUP(M146,leveldesc,2,1) ->  | O146: =AVERAGE(INDIRECT("Database!"&U146&":"&U146)) ->  | P146: =VLOOKUP(O146,leveldesc,2,1) ->  | R146: 152 | S146: EV | T146: 278 | U146: JR
B147: 1.4.4 | C147: Modelled a comprehensive selection of effective teaching strategies that promote learner achievement in literacy and numeracy. | N147: =VLOOKUP(M147,leveldesc,2,1) ->  | P147: =VLOOKUP(O147,leveldesc,2,1) ->  | R147: 153 | S147: EW | T147: 279 | U147: JS
B148: 1.5.4 | C148: Lead colleagues in reviewing, modifying and expanding their range of teaching strategies that promote critical and creative thinking, as well as other higher-order thinking skills. | N148: =VLOOKUP(M148,leveldesc,2,1) ->  | P148: =VLOOKUP(O148,leveldesc,2,1) ->  | R148: 154 | S148: EX | T148: 280 | U148: JT
B149: Domain 2. Learning Environment | R149: 154 | S149: EX | T149: 280 | U149: JT
B150: 2.3.4 | C150: Modelled exemplary practices in the management of classroom structure and activities, and lead colleagues at the whole-school level to review and evaluate their practices. | M150: =AVERAGE(INDIRECT("Database!"&S150&":"&S150)) ->  | N150: =VLOOKUP(M150,leveldesc,2,1) ->  | O150: =AVERAGE(INDIRECT("Database!"&U150&":"&U150)) ->  | P150: =VLOOKUP(O150,leveldesc,2,1) ->  | R150: 155 | S150: EY | T150: 281 | U150: JU
B151: 2.6.4 | C151: Provided leadership in applying a wide range of strategies in the implementation of positive and non-violent discipline policies/procedures to ensure learning-focused environments. | N151: =VLOOKUP(M151,leveldesc,2,1) ->  | P151: =VLOOKUP(O151,leveldesc,2,1) ->  | R151: 156 | S151: EZ | T151: 282 | U151: JV
B152: Domain 3. Diversity of Learners | R152: 156 | S152: EZ | T152: 282 | U152: JV
B153: 3.1.4 | C153: Lead colleagues to evaluate differentiated strategies to enrich teaching practices that address learners’ differences in gender, needs, strengths, interests and experiences. | M153: =AVERAGE(INDIRECT("Database!"&S153&":"&S153)) ->  | N153: =VLOOKUP(M153,leveldesc,2,1) ->  | O153: =AVERAGE(INDIRECT("Database!"&U153&":"&U153)) ->  | P153: =VLOOKUP(O153,leveldesc,2,1) ->  | R153: 157 | S153: FA | T153: 283 | U153: JW
B154: Domain 4. Curriculum and Planning | R154: 157 | S154: FA | T154: 283 | U154: JW
B155: 4.1.4 | C155: Modelled exemplary practice and lead colleagues in enhancing current practices in the planning and management of developmentally sequenced teaching and learning process. | M155: =AVERAGE(INDIRECT("Database!"&S155&":"&S155)) ->  | N155: =VLOOKUP(M155,leveldesc,2,1) ->  | O155: =AVERAGE(INDIRECT("Database!"&U155&":"&U155)) ->  | P155: =VLOOKUP(O155,leveldesc,2,1) ->  | R155: 158 | S155: FB | T155: 284 | U155: JX
B156: 4.4.4 | C156: Lead colleagues in professional discussions to plan and implement strategies that enrich teaching practice. | N156: =VLOOKUP(M156,leveldesc,2,1) ->  | P156: =VLOOKUP(O156,leveldesc,2,1) ->  | R156: 159 | S156: FC | T156: 285 | U156: JY
B157: 4.5.4 | C157: Modelled exemplary skills and lead colleagues in the development and evaluation of teaching and learning resources, including ICT, for use within and beyond the school. | N157: =VLOOKUP(M157,leveldesc,2,1) ->  | P157: =VLOOKUP(O157,leveldesc,2,1) ->  | R157: 160 | S157: FD | T157: 286 | U157: JZ
B158: Domain 5. Assessment and Reporting | R158: 160 | S158: FD | T158: 286 | U158: JZ
B159: 5.1.4 | C159: Lead initiatives in the evaluation of assessment policies and guidelines that relate to the design, selection, organization and use of effective diagnostic, formative and summative assessment strategies consistent with curriculum requirements. | M159: =AVERAGE(INDIRECT("Database!"&S159&":"&S159)) ->  | N159: =VLOOKUP(M159,leveldesc,2,1) ->  | O159: =AVERAGE(INDIRECT("Database!"&U159&":"&U159)) ->  | P159: =VLOOKUP(O159,leveldesc,2,1) ->  | R159: 161 | S159: FE | T159: 287 | U159: KA
B160: 5.2.4 | C160: Provided advice on, and mentor colleagues in the effective analysis and use of learner attainment data. | N160: =VLOOKUP(M160,leveldesc,2,1) ->  | P160: =VLOOKUP(O160,leveldesc,2,1) ->  | R160: 162 | S160: FF | T160: 288 | U160: KB
B161: 5.4.4 | C161: Shared with colleagues a wide range of strategies that ensure effective communication of learner needs, progress and achievement to key stakeholders, including parents/guardians. | N161: =VLOOKUP(M161,leveldesc,2,1) ->  | P161: =VLOOKUP(O161,leveldesc,2,1) ->  | R161: 163 | S161: FG | T161: 289 | U161: KC
B162: Domain 7. Personal Growth and Professional Development | R162: 163 | S162: FG | T162: 289 | U162: KC
B163: 7.1.4 | C163: Modelled a learner-centered teaching philosophy through teaching practices that stimulate colleagues to engage in further professional learning. | M163: =AVERAGE(INDIRECT("Database!"&S163&":"&S163)) ->  | N163: =VLOOKUP(M163,leveldesc,2,1) ->  | O163: =AVERAGE(INDIRECT("Database!"&U163&":"&U163)) ->  | P163: =VLOOKUP(O163,leveldesc,2,1) ->  | R163: 164 | S163: FH | T163: 290 | U163: KD
B164: 7.5.4 | C164: Lead reforms in enhancing professional development programs based on an in-depth knowledge and understanding of the Philippine Professional Standards for Teachers. | N164: =VLOOKUP(M164,leveldesc,2,1) ->  | P164: =VLOOKUP(O164,leveldesc,2,1) ->  | R164: 165 | S164: FI | T164: 291 | U164: KE
R165: 165 | S165: FI | T165: 291 | U165: KE
B166: INDICATORS - YEAR 2 | M166: Level of Capability | O166: Priority for Development | R166: 165 | S166: FI | T166: 291 | U166: KE
B167: Domain 1. Content Knowledge and Pedagogy | R167: 165 | S167: FI | T167: 291 | U167: KE
B168: 1.1.4 | C168: Modelled exemplary practice to improve the applications of content knowledge within and across curriculum teaching areas. | M168: =AVERAGE(INDIRECT("Database!"&S168&":"&S168)) ->  | N168: =VLOOKUP(M168,leveldesc,2,1) ->  | O168: =AVERAGE(INDIRECT("Database!"&U168&":"&U168)) ->  | P168: =VLOOKUP(O168,leveldesc,2,1) ->  | R168: 166 | S168: FJ | T168: 292 | U168: KF
B169: 1.4.4 | C169: Modelled a comprehensive selection of effective teaching strategies that promote learner achievement in literacy and numeracy. | N169: =VLOOKUP(M169,leveldesc,2,1) ->  | P169: =VLOOKUP(O169,leveldesc,2,1) ->  | R169: 167 | S169: FK | T169: 293 | U169: KG
B170: 1.5.4 | C170: Lead colleagues in reviewing, modifying and expanding their range of teaching strategies that promote critical and creative thinking, as well as other higher-order thinking skills. | N170: =VLOOKUP(M170,leveldesc,2,1) ->  | P170: =VLOOKUP(O170,leveldesc,2,1) ->  | R170: 168 | S170: FL | T170: 294 | U170: KH
B171: 1.6.4 | C171: Showed exemplary skills in and advocate the use of Mother Tongue, Filipino and English in teaching and learning to facilitate the learners’ language, cognitive and academic development and to foster pride of their language, heritage and culture. | N171: =VLOOKUP(M171,leveldesc,2,1) ->  | P171: =VLOOKUP(O171,leveldesc,2,1) ->  | R171: 169 | S171: FM | T171: 295 | U171: KI
B172: Domain 2. Learning Environment | R172: 169 | S172: FM | T172: 295 | U172: KI
B173: 2.1.4 | C173: Applied comprehensive knowledge of and act as a resource person for, policies, guidelines and procedures that relate to the implementation of safe and secure learning environments for learners. | M173: =AVERAGE(INDIRECT("Database!"&S173&":"&S173)) ->  | N173: =VLOOKUP(M173,leveldesc,2,1) ->  | O173: =AVERAGE(INDIRECT("Database!"&U173&":"&U173)) ->  | P173: =VLOOKUP(O173,leveldesc,2,1) ->  | R173: 170 | S173: FN | T173: 296 | U173: KJ
B174: 2.2.4 | C174: Advocated and facilitate the use of effective practices to foster learning environments that promote fairness, respect and care to encourage learning. | N174: =VLOOKUP(M174,leveldesc,2,1) ->  | P174: =VLOOKUP(O174,leveldesc,2,1) ->  | R174: 171 | S174: FO | T174: 297 | U174: KK
B175: Domain 3. Diversity of Learners | R175: 171 | S175: FO | T175: 297 | U175: KK
B176: 3.2.4 | C176: Modelled exemplary teaching practices that recognize and affirm diverse linguistic, cultural, socio economic and religious backgrounds to promote learner success. | M176: =AVERAGE(INDIRECT("Database!"&S176&":"&S176)) ->  | N176: =VLOOKUP(M176,leveldesc,2,1) ->  | O176: =AVERAGE(INDIRECT("Database!"&U176&":"&U176)) ->  | P176: =VLOOKUP(O176,leveldesc,2,1) ->  | R176: 172 | S176: FP | T176: 298 | U176: KL
B177: 3.5.4 | C177: Showed comprehensive skills in delivering culturally appropriate teaching strategies to address effectively the needs of learners from indigenous groups. | N177: =VLOOKUP(M177,leveldesc,2,1) ->  | P177: =VLOOKUP(O177,leveldesc,2,1) ->  | R177: 173 | S177: FQ | T177: 299 | U177: KM
B178: Domain 4. Curriculum and Planning | R178: 173 | S178: FQ | T178: 299 | U178: KM
B179: 4.2.4 | C179: Exhibited high-level skills and lead in setting achievable and challenging learning outcomes that are aligned with learning competencies towards the cultivation of a culture of excellence for all. | M179: =AVERAGE(INDIRECT("Database!"&S179&":"&S179)) ->  | N179: =VLOOKUP(M179,leveldesc,2,1) ->  | O179: =AVERAGE(INDIRECT("Database!"&U179&":"&U179)) ->  | P179: =VLOOKUP(O179,leveldesc,2,1) ->  | R179: 174 | S179: FR | T179: 300 | U179: KN
B180: Domain 5. Assessment and Reporting | R180: 174 | S180: FR | T180: 300 | U180: KN
B181: 5.3.4 | C181: Exhibited exemplary skills and lead initiatives to support colleagues in applying strategies that effectively provide timely, accurate and constructive feedback to learners to improve learning achievement. | M181: =AVERAGE(INDIRECT("Database!"&S181&":"&S181)) ->  | N181: =VLOOKUP(M181,leveldesc,2,1) ->  | O181: =AVERAGE(INDIRECT("Database!"&U181&":"&U181)) ->  | P181: =VLOOKUP(O181,leveldesc,2,1) ->  | R181: 175 | S181: FS | T181: 301 | U181: KO
B182: 5.5.4 | C182: Lead colleagues to explore, design and implement effective practices and programs using information derived from assessment data. | N182: =VLOOKUP(M182,leveldesc,2,1) ->  | P182: =VLOOKUP(O182,leveldesc,2,1) ->  | R182: 176 | S182: FT | T182: 302 | U182: KP
B183: Domain 6. Community Linkages and Professional Engagement | R183: 176 | S183: FT | T183: 302 | U183: KP
B184: 6.2.4 | C184: Lead in consolidating networks that strengthen relationships with parents/guardians and the wider school community to maximize their involvement in the educative process. | M184: =AVERAGE(INDIRECT("Database!"&S184&":"&S184)) ->  | N184: =VLOOKUP(M184,leveldesc,2,1) ->  | O184: =AVERAGE(INDIRECT("Database!"&U184&":"&U184)) ->  | P184: =VLOOKUP(O184,leveldesc,2,1) ->  | R184: 177 | S184: FU | T184: 303 | U184: KQ
B185: Domain 7. Personal Growth and Professional Development | R185: 177 | S185: FU | T185: 303 | U185: KQ
B186: 7.3.4 | C186: Took a leadership role in supporting colleagues’ engagement with professional networks within and across schools to advance knowledge and practice in identified areas of need. | M186: =AVERAGE(INDIRECT("Database!"&S186&":"&S186)) ->  | N186: =VLOOKUP(M186,leveldesc,2,1) ->  | O186: =AVERAGE(INDIRECT("Database!"&U186&":"&U186)) ->  | P186: =VLOOKUP(O186,leveldesc,2,1) ->  | R186: 178 | S186: FV | T186: 304 | U186: KR
B187: 7.4.4 | C187: Demonstrated leadership within and across school contexts in critically evaluating practice and setting clearly defined targets for professional development. | N187: =VLOOKUP(M187,leveldesc,2,1) ->  | P187: =VLOOKUP(O187,leveldesc,2,1) ->  | R187: 179 | S187: FW | T187: 305 | U187: KS
R188: 179 | S188: FW | T188: 305 | U188: KS
B189: INDICATORS - YEAR 3 | M189: Level of Capability | O189: Priority for Development | R189: 179 | S189: FW | T189: 305 | U189: KS
B190: Domain 1. Content Knowledge and Pedagogy | R190: 179 | S190: FW | T190: 305 | U190: KS
B191: 1.1.4 | C191: Modelled exemplary practice to improve the applications of content knowledge within and across curriculum teaching areas. | M191: =AVERAGE(INDIRECT("Database!"&S191&":"&S191)) ->  | N191: =VLOOKUP(M191,leveldesc,2,1) ->  | O191: =AVERAGE(INDIRECT("Database!"&U191&":"&U191)) ->  | P191: =VLOOKUP(O191,leveldesc,2,1) ->  | R191: 180 | S191: FX | T191: 306 | U191: KT
B192: 1.2.4 | C192: Lead colleagues in the advancement of the art and science of teaching based on their comprehensive knowledge of research and pedagogy. | N192: =VLOOKUP(M192,leveldesc,2,1) ->  | P192: =VLOOKUP(O192,leveldesc,2,1) ->  | R192: 181 | S192: FY | T192: 307 | U192: KU
B193: 1.3.4 | C193: Mentored colleagues in the implementation of policies to ensure the positive use of ICT within or beyond the school. | N193: =VLOOKUP(M193,leveldesc,2,1) ->  | P193: =VLOOKUP(O193,leveldesc,2,1) ->  | R193: 182 | S193: FZ | T193: 308 | U193: KV
B194: 1.4.4 | C194: Modelled a comprehensive selection of effective teaching strategies that promote learner achievement in literacy and numeracy. | N194: =VLOOKUP(M194,leveldesc,2,1) ->  | P194: =VLOOKUP(O194,leveldesc,2,1) ->  | R194: 183 | S194: GA | T194: 309 | U194: KW
B195: 1.7.4 | C195: Exhibited exemplary practice in the use of effective verbal and non-verbal classroom communication strategies to support learner understanding, participation, engagement and achievement in different learning contexts. | N195: =VLOOKUP(M195,leveldesc,2,1) ->  | P195: =VLOOKUP(O195,leveldesc,2,1) ->  | R195: 184 | S195: GB | T195: 310 | U195: KX
B196: Domain 2. Learning Environment | R196: 184 | S196: GB | T196: 310 | U196: KX
B197: 2.4.4 | C197: Facilitated processes to review the effectiveness of the school’s learning environment to nurture and inspire learner participation. | M197: =AVERAGE(INDIRECT("Database!"&S197&":"&S197)) ->  | N197: =VLOOKUP(M197,leveldesc,2,1) ->  | O197: =AVERAGE(INDIRECT("Database!"&U197&":"&U197)) ->  | P197: =VLOOKUP(O197,leveldesc,2,1) ->  | R197: 185 | S197: GC | T197: 311 | U197: KY
B198: 2.5.4 | C198: Lead and empower colleagues in promoting learning environments that effectively motivate learners to achieve quality outcomes by assuming responsibility for their own learning. | N198: =VLOOKUP(M198,leveldesc,2,1) ->  | P198: =VLOOKUP(O198,leveldesc,2,1) ->  | R198: 186 | S198: GD | T198: 312 | U198: KZ
B199: Domain 3. Diversity of Learners | R199: 186 | S199: GD | T199: 312 | U199: KZ
B200: 3.3.4 | C200: Lead colleagues in designing, adapting and implementing teaching strategies that are responsive to learners with disabilities, giftedness and talents. | M200: =AVERAGE(INDIRECT("Database!"&S200&":"&S200)) ->  | N200: =VLOOKUP(M200,leveldesc,2,1) ->  | O200: =AVERAGE(INDIRECT("Database!"&U200&":"&U200)) ->  | P200: =VLOOKUP(O200,leveldesc,2,1) ->  | R200: 187 | S200: GE | T200: 313 | U200: LA
B201: 3.4.4 | C201: Modelled a range of high level skills responsive to the special educational needs of learners in difficult circumstances, including: geographic isolation; chronic illness; displacement due to armed conflict, urban resettlement or disasters; child abuse and child labor practices. | N201: =VLOOKUP(M201,leveldesc,2,1) ->  | P201: =VLOOKUP(O201,leveldesc,2,1) ->  | R201: 188 | S201: GF | T201: 314 | U201: LB
B202: Domain 4. Curriculum and Planning | R202: =IF(C202<>"",R201+1,R201) -> 188 | S202: =SUBSTITUTE(ADDRESS(1, R202, 4), "1", "") -> GF | T202: =IF(C202<>"",T201+1,T201) -> 314 | U202: =SUBSTITUTE(ADDRESS(1, T202, 4), "1", "") -> LB
... 70 more rows

Sheet Database (hidden)
A1: No. | B1: Name of Employee | C1: Position Title | D1: Proficiency | E1: Employment Status | F1: Age | G1: Sex | H1: Total Number of Years in Teaching | I1: Highest Degree Obtained | J1: Level Taught | K1: Grade Level Taught | L1: Region | M1: Division | N1: School ID | O1: School Name | P1: School Type | Q1: School Size | R1: Curricular Classification | S1: Area: English | T1: Area: Filipino | U1: Area: Mathematics | V1: Area: GENERAL SCIENCE | W1: Area: Biology | X1: Area: Chemistry | Y1: Area: Physics | Z1: Area: Social Science | AA1: Area: Early Childhood Education | AB1: Area: Values Education | AC1: Area: SPED | AD1: Area: Music | AE1: Area: Arts | AF1: Area: Physical Education | AG1: Area: Health | AH1: Area: TLE/HE/TVL | AI1: Area: Others | AJ1: Subj. Taught: All Subjects | AK1: Subj. Taught: MTB-MLE | AL1: Subj. Taught: Madrasah ALIVE | AM1: Subj. Taught: Filipino | AN1: Subj. Taught: English | AO1: Subj. Taught: Mathematics | AP1: Subj. Taught: Science | AQ1: Subj. Taught: Araling Panlipunan | AR1: Subj. Taught: GMRC / EsP | AS1: Subj. Taught: MAPEH | AT1: Subj. Taught: Music and Arts | AU1: Subj. Taught: PE and Health | AV1: Subj. Taught: Makabansa | AW1: Subj. Taught: Languages / Reading and Literacy | AX1: Subj. Taught: TLE/EPP-HE | AY1: Subj. Taught: TLE/EPP-LE/Tech-Voc | AZ1: Subj. Taught: ALS | BA1: Subj. Taught: IPED | BB1: Subj. Taught: Special Programs | BC1: Subj. Taught: Others | BD1: Strand: ACAD-ABM | BE1: Strand: ACAD-HUMSS | BF1: Strand: ACAD-STEM | BG1: Strand: ACAD-General Academic | BH1: Strand: ACAD-Pre-Baccalaureate Maritime | BI1: Strand: TVL-Agri-Fishery | BJ1: Strand: TVL-HE | BK1: Strand: TVL-ICT | BL1: Strand: TVL-Industrial Arts | BM1: Strand: TVL-Maritime | BN1: Strand: Sports | BO1: Strand: Arts & Design | BP1: BP Yr1 1.1.2 LC | BQ1: BP Yr1 1.4.2 LC | BR1: BP Yr1 1.5.2 LC | BS1: BP Yr1 2.3.2 LC | BT1: BP Yr1 2.6.2 LC | BU1: BP Yr1 3.1.2 LC | BV1: BP Yr1 4.1.2 LC | BW1: BP Yr1 4.4.2 LC | BX1: BP Yr1 4.5.2 LC | BY1: BP Yr1 5.1.2 LC | BZ1: BP Yr1 5.2.2 LC | CA1: BP Yr1 5.4.2 LC | CB1: BP Yr1 7.1.2 LC | CC1: BP Yr1 7.5.2 LC | CD1: BP Yr2 1.1.2 LC | CE1: BP Yr2 1.4.2 LC | CF1: BP Yr2 1.5.2 LC | CG1: BP Yr2 1.6.2 LC | CH1: BP Yr2 2.1.2 LC | CI1: BP Yr2 2.2.2 LC | CJ1: BP Yr2 3.2.2 LC | CK1: BP Yr2 3.5.2 LC | CL1: BP Yr2 4.2.2 LC | CM1: BP Yr2 5.3.2 LC | CN1: BP Yr2 5.5.2 LC | CO1: BP Yr2 6.2.2 LC | CP1: BP Yr2 7.3.2 LC | CQ1: BP Yr2 7.4.2 LC | CR1: BP Yr3 1.1.2 LC | CS1: BP Yr3 1.2.2 LC | CT1: BP Yr3 1.3.2 LC | CU1: BP Yr3 1.4.2 LC | CV1: BP Yr3 1.7.2 LC | CW1: BP Yr3 2.4.2 LC | CX1: BP Yr3 2.5.2 LC | CY1: BP Yr3 3.3.2 LC | CZ1: BP Yr3 3.4.2 LC | DA1: BP Yr3 4.3.2 LC | DB1: BP Yr3 6.1.2 LC | DC1: BP Yr3 6.3.2 LC | DD1: BP Yr3 6.4.2 LC | DE1: BP Yr3 7.2.2 LC | DF1: HP Yr1 1.1.3 LC | DG1: HP Yr1 1.4.3 LC | DH1: HP Yr1 1.5.3 LC | DI1: HP Yr1 2.3.3 LC | DJ1: HP Yr1 2.6.3 LC | DK1: HP Yr1 3.1.3 LC | DL1: HP Yr1 4.1.3 LC | DM1: HP Yr1 4.4.3 LC | DN1: HP Yr1 4.5.3 LC | DO1: HP Yr1 5.1.3 LC | DP1: HP Yr1 5.2.3 LC | DQ1: HP Yr1 5.4.3 LC | DR1: HP Yr1 7.1.3 LC | DS1: HP Yr1 7.5.3 LC | DT1: HP Yr2 1.1.3 LC | DU1: HP Yr2 1.4.3 LC | DV1: HP Yr2 1.5.3 LC | DW1: HP Yr2 1.6.3 LC | DX1: HP Yr2 2.1.3 LC | DY1: HP Yr2 2.2.3 LC | DZ1: HP Yr2 3.2.3 LC | EA1: HP Yr2 3.5.3 LC | EB1: HP Yr2 4.2.3 LC | EC1: HP Yr2 5.3.3 LC | ED1: HP Yr2 5.5.3 LC | EE1: HP Yr2 6.2.3 LC | EF1: HP Yr2 7.3.3 LC | EG1: HP Yr2 7.4.3 LC | EH1: HP Yr3 1.1.3 LC | EI1: HP Yr3 1.2.3 LC | EJ1: HP Yr3 1.3.3 LC | EK1: HP Yr3 1.4.3 LC | EL1: HP Yr3 1.7.3 LC | EM1: HP Yr3 2.4.3 LC | EN1: HP Yr3 2.5.3 LC | EO1: HP Yr3 3.3.3 LC | EP1: HP Yr3 3.4.3 LC | EQ1: HP Yr3 4.3.3 LC | ER1: HP Yr3 6.1.3 LC | ES1: HP Yr3 6.3.3 LC | ET1: HP Yr3 6.4.3 LC | EU1: HP Yr3 7.2.3 LC | EV1: D Yr1 1.1.4 LC | EW1: D Yr1 1.4.4 LC | EX1: D Yr1 1.5.4 LC | EY1: D Yr1 2.3.4 LC | EZ1: D Yr1 2.6.4 LC | FA1: D Yr1 3.1.4 LC | FB1: D Yr1 4.1.4 LC | FC1: D Yr1 4.4.4 LC | FD1: D Yr1 4.5.4 LC | FE1: D Yr1 5.1.4 LC | FF1: D Yr1 5.2.4 LC | FG1: D Yr1 5.4.4 LC | FH1: D Yr1 7.1.4 LC | FI1: D Yr1 7.5.4 LC | FJ1: D Yr2 1.1.4 LC | FK1: D Yr2 1.4.4 LC | FL1: D Yr2 1.5.4 LC | FM1: D Yr2 1.6.4 LC | FN1: D Yr2 2.1.4 LC | FO1: D Yr2 2.2.4 LC | FP1: D Yr2 3.2.4 LC | FQ1: D Yr2 3.5.4 LC | FR1: D Yr2 4.2.4 LC | FS1: D Yr2 5.3.4 LC | FT1: D Yr2 5.5.4 LC | FU1: D Yr2 6.2.4 LC | FV1: D Yr2 7.3.4 LC | FW1: D Yr2 7.4.4 LC | FX1: D Yr3 1.1.4 LC | FY1: D Yr3 1.2.4 LC | FZ1: D Yr3 1.3.4 LC | GA1: D Yr3 1.4.4 LC | GB1: D Yr3 1.7.4 LC | GC1: D Yr3 2.4.4 LC | GD1: D Yr3 2.5.4 LC | GE1: D Yr3 3.3.4 LC | GF1: D Yr3 3.4.4 LC | GG1: D Yr3 4.3.4 LC | GH1: D Yr3 6.1.4 LC | GI1: D Yr3 6.3.4 LC | GJ1: D Yr3 6.4.4 LC | GK1: D Yr3 7.2.4 LC | GL1: BP Yr1 1.1.2 PD | GM1: BP Yr1 1.4.2 PD | GN1: BP Yr1 1.5.2 PD | GO1: BP Yr1 2.3.2 PD | GP1: BP Yr1 2.6.2 PD | GQ1: BP Yr1 3.1.2 PD | GR1: BP Yr1 4.1.2 PD | GS1: BP Yr1 4.4.2 PD | GT1: BP Yr1 4.5.2 PD | GU1: BP Yr1 5.1.2 PD | GV1: BP Yr1 5.2.2 PD | GW1: BP Yr1 5.4.2 PD | GX1: BP Yr1 7.1.2 PD | GY1: BP Yr1 7.5.2 PD | GZ1: BP Yr2 1.1.2 PD | HA1: BP Yr2 1.4.2 PD | HB1: BP Yr2 1.5.2 PD | HC1: BP Yr2 1.6.2 PD | HD1: BP Yr2 2.1.2 PD | HE1: BP Yr2 2.2.2 PD | HF1: BP Yr2 3.2.2 PD | HG1: BP Yr2 3.5.2 PD | HH1: BP Yr2 4.2.2 PD | HI1: BP Yr2 5.3.2 PD | HJ1: BP Yr2 5.5.2 PD | HK1: BP Yr2 6.2.2 PD | HL1: BP Yr2 7.3.2 PD | HM1: BP Yr2 7.4.2 PD | HN1: BP Yr3 1.1.2 PD | HO1: BP Yr3 1.2.2 PD | HP1: BP Yr3 1.3.2 PD | HQ1: BP Yr3 1.4.2 PD | HR1: BP Yr3 1.7.2 PD | HS1: BP Yr3 2.4.2 PD | HT1: BP Yr3 2.5.2 PD | HU1: BP Yr3 3.3.2 PD | HV1: BP Yr3 3.4.2 PD | HW1: BP Yr3 4.3.2 PD | HX1: BP Yr3 6.1.2 PD | HY1: BP Yr3 6.3.2 PD | HZ1: BP Yr3 6.4.2 PD | IA1: BP Yr3 7.2.2 PD | IB1: HP Yr1 1.1.3 PD | IC1: HP Yr1 1.4.3 PD | ID1: HP Yr1 1.5.3 PD | IE1: HP Yr1 2.3.3 PD | IF1: HP Yr1 2.6.3 PD | IG1: HP Yr1 3.1.3 PD | IH1: HP Yr1 4.1.3 PD | II1: HP Yr1 4.4.3 PD | IJ1: HP Yr1 4.5.3 PD | IK1: HP Yr1 5.1.3 PD | IL1: HP Yr1 5.2.3 PD | IM1: HP Yr1 5.4.3 PD | IN1: HP Yr1 7.1.3 PD | IO1: HP Yr1 7.5.3 PD | IP1: HP Yr2 1.1.3 PD | IQ1: HP Yr2 1.4.3 PD | IR1: HP Yr2 1.5.3 PD | IS1: HP Yr2 1.6.3 PD | IT1: HP Yr2 2.1.3 PD | IU1: HP Yr2 2.2.3 PD | IV1: HP Yr2 3.2.3 PD | IW1: HP Yr2 3.5.3 PD | IX1: HP Yr2 4.2.3 PD | IY1: HP Yr2 5.3.3 PD | IZ1: HP Yr2 5.5.3 PD | JA1: HP Yr2 6.2.3 PD | JB1: HP Yr2 7.3.3 PD | JC1: HP Yr2 7.4.3 PD | JD1: HP Yr3 1.1.3 PD | JE1: HP Yr3 1.2.3 PD | JF1: HP Yr3 1.3.3 PD | JG1: HP Yr3 1.4.3 PD | JH1: HP Yr3 1.7.3 PD | JI1: HP Yr3 2.4.3 PD | JJ1: HP Yr3 2.5.3 PD | JK1: HP Yr3 3.3.3 PD | JL1: HP Yr3 3.4.3 PD | JM1: HP Yr3 4.3.3 PD | JN1: HP Yr3 6.1.3 PD | JO1: HP Yr3 6.3.3 PD | JP1: HP Yr3 6.4.3 PD | JQ1: HP Yr3 7.2.3 PD | JR1: D Yr1 1.1.4 PD | JS1: D Yr1 1.4.4 PD | JT1: D Yr1 1.5.4 PD | JU1: D Yr1 2.3.4 PD | JV1: D Yr1 2.6.4 PD | JW1: D Yr1 3.1.4 PD | JX1: D Yr1 4.1.4 PD | JY1: D Yr1 4.4.4 PD | JZ1: D Yr1 4.5.4 PD | KA1: D Yr1 5.1.4 PD | KB1: D Yr1 5.2.4 PD | KC1: D Yr1 5.4.4 PD | KD1: D Yr1 7.1.4 PD | KE1: D Yr1 7.5.4 PD | KF1: D Yr2 1.1.4 PD | KG1: D Yr2 1.4.4 PD | KH1: D Yr2 1.5.4 PD | KI1: D Yr2 1.6.4 PD | KJ1: D Yr2 2.1.4 PD | KK1: D Yr2 2.2.4 PD | KL1: D Yr2 3.2.4 PD | KM1: D Yr2 3.5.4 PD | KN1: D Yr2 4.2.4 PD | KO1: D Yr2 5.3.4 PD | KP1: D Yr2 5.5.4 PD | KQ1: D Yr2 6.2.4 PD | KR1: D Yr2 7.3.4 PD | KS1: D Yr2 7.4.4 PD | KT1: D Yr3 1.1.4 PD | KU1: D Yr3 1.2.4 PD | KV1: D Yr3 1.3.4 PD | KW1: D Yr3 1.4.4 PD | KX1: D Yr3 1.7.4 PD | KY1: D Yr3 2.4.4 PD | KZ1: D Yr3 2.5.4 PD | LA1: D Yr3 3.3.4 PD | LB1: D Yr3 3.4.4 PD | LC1: D Yr3 4.3.4 PD | LD1: D Yr3 6.1.4 PD | LE1: D Yr3 6.3.4 PD | LF1: D Yr3 6.4.4 PD | LG1: D Yr3 7.2.4 PD | LH1: LC-LP1 | LI1: LC-LP2 | LJ1: LC-LP3 | LK1: LC-LP4 | LL1: LC-LP5 | LM1: LC-PPM1 | LN1: LC-PPM2 | LO1: LC-PPM3 | LP1: LC-PPM4 | LQ1: LC-PPM5 | LR1: LC-PD1 | LS1: LC-PD2 | LT1: LC-PD3 | LU1: LC-PD4 | LV1: LC-PD5 | LW1: SM1 | LX1: SM2 | LY1: SM3 | LZ1: SM4 | MA1: SM5 | MB1: PE1 | MC1: PE2 | MD1: PE3 | ME1: PE4 | MF1: PE5 | MG1: RF1 | MH1: RF2 | MI1: RF3 | MJ1: RF4 | MK1: RF5 | ML1: TW1 | MM1: TW2 | MN1: TW3 | MO1: TW4 | MP1: TW5 | MQ1: SO1 | MR1: SO2 | MS1: SO3 | MT1: SO4 | MU1: SO5 | MV1: I1 | MW1: I2 | MX1: I3 | MY1: I4 | MZ1: I5 | NA1: GS1 | NB1: GS2 | NC1: GS3 | ND1: GS4 | NE1: GS5

Sheet divisions (hidden)
A1: =IFERROR(VLOOKUP(Home!C16,divisions!$E$2:$F$18,2,0),A2) -> A3 | B1: Region | C1: Division | E1: Region (full) | F1: Division Table Name | H1: References (for copy-paste as needed)
A2: A3 | B2: BARMM | C2: Basilan | E2: Bangsamoro Autonomous Region in Muslim Mindanao (BARMM) | F2: BARMM_divlist | H2: Bangsamoro Autonomous Region in Muslim Mindanao (BARMM) | I2: BARMM_divlist
B3: BARMM | C3: Lamitan City | E3: Cordillera Administrative Region (CAR) | F3: CAR_divlist | H3: Cordillera Administrative Region (CAR) | I3: CAR_divlist
B4: BARMM | C4: Lanao del Sur I | E4: National Capital Region (NCR) | F4: NCR_divlist | H4: National Capital Region (NCR) | I4: NCR_divlist
B5: BARMM | C5: Lanao del Sur II | E5: I - Ilocos Region | F5: RI_divlist | H5: I - Ilocos Region | I5: RI_divlist
B6: BARMM | C6: Maguindanao I | E6: II - Cagayan Valley | F6: RII_divlist | H6: II - Cagayan Valley | I6: RII_divlist
B7: BARMM | C7: Maguindanao II | E7: III - Central Luzon | F7: RIII_divlist | H7: III - Central Luzon | I7: RIII_divlist
B8: BARMM | C8: Marawi City | E8: IV-A - CALABARZON | F8: RIVA_divlist | H8: IV-A - CALABARZON | I8: RIVA_divlist
B9: BARMM | C9: Sulu | E9: IV-B - MIMAROPA | F9: RIVB_divlist | H9: IV-B - MIMAROPA | I9: RIVB_divlist
B10: BARMM | C10: Tawi-Tawi | E10: V - Bicol Region | F10: RV_divlist | H10: V - Bicol Region | I10: RV_divlist
B11: CAR | C11: Abra | E11: VI - Western Visayas | F11: RVI_divlist | H11: VI - Western Visayas | I11: RVI_divlist
B12: CAR | C12: Apayao | E12: VII - Central Visayas | F12: RVII_divlist | H12: VII - Central Visayas | I12: RVII_divlist
B13: CAR | C13: Baguio City | E13: VIII - Eastern Visayas | F13: RVIII_divlist | H13: VIII - Eastern Visayas | I13: RVIII_divlist
B14: CAR | C14: Benguet | E14: IX - Zamboanga Peninsula | F14: RIX_divlist | H14: IX - Zamboanga Peninsula | I14: RIX_divlist
B15: CAR | C15: Ifugao | E15: X - Northern Mindanao | F15: RX_divlist | H15: X - Northern Mindanao | I15: RX_divlist
B16: CAR | C16: Kalinga | E16: XI - Davao Region | F16: RXI_divlist | H16: XI - Davao Region | I16: RXI_divlist
B17: CAR | C17: Mt. Province | E17: XII - SOCCSKSARGEN | F17: RXII_divlist | H17: XII - SOCCSKSARGEN | I17: RXII_divlist
B18: CAR | C18: Tabuk City | E18: XIII - CARAGA Region | F18: CARAGA_divlist | H18: XIII - CARAGA Region | I18: CARAGA_divlist
B19: NCR | C19: Caloocan City
B20: NCR | C20: Las Piñas City
B21: NCR | C21: Makati City
B22: NCR | C22: Malabon City
B23: NCR | C23: Mandaluyong City
B24: NCR | C24: Manila
B25: NCR | C25: Marikina City
B26: NCR | C26: Muntinlupa City
B27: NCR | C27: Navotas City
B28: NCR | C28: Parañaque City
B29: NCR | C29: Pasay City
B30: NCR | C30: Pasig City
B31: NCR | C31: Quezon City
B32: NCR | C32: San Juan City
B33: NCR | C33: Taguig City-Pateros
B34: NCR | C34: Valenzuela City
B35: Region I | C35: Alaminos City
B36: Region I | C36: Batac City
B37: Region I | C37: Candon City
B38: Region I | C38: Dagupan City
B39: Region I | C39: Ilocos Norte
B40: Region I | C40: Ilocos Sur
B41: Region I | C41: La Union
B42: Region I | C42: Laoag City
B43: Region I | C43: Pangasinan I
B44: Region I | C44: Pangasinan II
B45: Region I | C45: San Carlos City
B46: Region I | C46: San Fernando City
B47: Region I | C47: Urdaneta City
B48: Region I | C48: Vigan City
B49: Region II | C49: Batanes
B50: Region II | C50: Cagayan
B51: Region II | C51: Cauayan City
B52: Region II | C52: Ilagan City
B53: Region II | C53: Isabela Province
B54: Region II | C54: Nueva Vizcaya
B55: Region II | C55: Quirino
B56: Region II | C56: Santiago City
B57: Region II | C57: Tuguegarao City
B58: Region III | C58: Angeles City
B59: Region III | C59: Aurora
B60: Region III | C60: Balanga City
B61: Region III | C61: Bataan
B62: Region III | C62: Bulacan Province
B63: Region III | C63: Cabanatuan City
B64: Region III | C64: Gapan City
B65: Region III | C65: Mabalacat City
B66: Region III | C66: Malolos City
B67: Region III | C67: Meycauayan
B68: Region III | C68: Nueva Ecija
B69: Region III | C69: Olongapo City
B70: Region III | C70: Pampanga
B71: Region III | C71: San Fernando City
B72: Region III | C72: San Jose City
B73: Region III | C73: San Jose del Monte
B74: Region III | C74: Science City of Muñoz
B75: Region III | C75: Tarlac City
B76: Region III | C76: Tarlac Province
B77: Region III | C77: Zambales
B78: Region IV-A | C78: Antipolo City
B79: Region IV-A | C79: Bacoor City
B80: Region IV-A | C80: Batangas City
B81: Region IV-A | C81: Batangas Province
B82: Region IV-A | C82: Biñan City
B83: Region IV-A | C83: Cabuyao City
B84: Region IV-A | C84: Calamba City
B85: Region IV-A | C85: Cavite City
B86: Region IV-A | C86: Cavite Province
B87: Region IV-A | C87: Dasmariñas City
B88: Region IV-A | C88: General Trias City
B89: Region IV-A | C89: Imus City
B90: Region IV-A | C90: Laguna
B91: Region IV-A | C91: Lipa City
B92: Region IV-A | C92: Lucena City
B93: Region IV-A | C93: Quezon Province
B94: Region IV-A | C94: Rizal
B95: Region IV-A | C95: San Pablo City
B96: Region IV-A | C96: Sta. Rosa City
B97: Region IV-A | C97: Tanauan City
B98: Region IV-A | C98: Tayabas City
B99: Region IV-B | C99: Calapan City
B100: Region IV-B | C100: Marinduque
B101: Region IV-B | C101: Occidental Mindoro
B102: Region IV-B | C102: Oriental Mindoro
B103: Region IV-B | C103: Palawan
B104: Region IV-B | C104: Puerto Princesa
B105: Region IV-B | C105: Romblon
B106: Region V | C106: Albay
B107: Region V | C107: Camarines Norte
B108: Region V | C108: Camarines Sur
B109: Region V | C109: Catanduanes
B110: Region V | C110: Iriga City
B111: Region V | C111: Legazpi City
B112: Region V | C112: Ligao City
B113: Region V | C113: Masbate Province
B114: Region V | C114: Masbate City
B115: Region V | C115: Naga City
B116: Region V | C116: Sorsogon City
B117: Region V | C117: Sorsogon Province
B118: Region V | C118: Tabaco City
B119: Region VI | C119: Aklan
B120: Region VI | C120: Antique
B121: Region VI | C121: Bacolod City
B122: Region VI | C122: Bago City
B123: Region VI | C123: Cadiz City
B124: Region VI | C124: Capiz
B125: Region VI | C125: Escalante City
B126: Region VI | C126: Guimaras
B127: Region VI | C127: Himamaylan City
B128: Region VI | C128: Iloilo City
B129: Region VI | C129: Iloilo Province
B130: Region VI | C130: Kabankalan City
B131: Region VI | C131: La Carlota City
B132: Region VI | C132: Negros Occidental
B133: Region VI | C133: Passi City
B134: Region VI | C134: Roxas City
B135: Region VI | C135: Sagay City
B136: Region VI | C136: San Carlos City
B137: Region VI | C137: Silay City
B138: Region VI | C138: Sipalay City
B139: Region VII | C139: Bais City
B140: Region VII | C140: Bayawan City
B141: Region VII | C141: Bogo City
B142: Region VII | C142: Bohol
B143: Region VII | C143: Carcar City
B144: Region VII | C144: Cebu City
B145: Region VII | C145: Cebu Province
B146: Region VII | C146: Danao
B147: Region VII | C147: Dumaguete City
B148: Region VII | C148: Guihulngan City
B149: Region VII | C149: Lapu-Lapu City
B150: Region VII | C150: Mandaue City
B151: Region VII | C151: Naga City
B152: Region VII | C152: Negros Oriental
B153: Region VII | C153: Siquijor
B154: Region VII | C154: Tagbilaran City
B155: Region VII | C155: Talisay City
B156: Region VII | C156: Tanjay City
B157: Region VII | C157: Toledo City
B158: Region VIII | C158: Baybay City
B159: Region VIII | C159: Biliran
B160: Region VIII | C160: Borongan City
B161: Region VIII | C161: Calbayog City
B162: Region VIII | C162: Catbalogan City
B163: Region VIII | C163: Eastern Samar
B164: Region VIII | C164: Leyte
B165: Region VIII | C165: Maasin City
B166: Region VIII | C166: Northern Samar
B167: Region VIII | C167: Ormoc City
B168: Region VIII | C168: Southern Leyte
B169: Region VIII | C169: Tacloban City
B170: Region VIII | C170: Western Samar
B171: Region IX | C171: Dapitan City
B172: Region IX | C172: Dipolog City
B173: Region IX | C173: Isabela City
B174: Region IX | C174: Pagadian City
B175: Region IX | C175: Zamboanga City
B176: Region IX | C176: Zamboanga del Norte
B177: Region IX | C177: Zamboanga del Sur
B178: Region IX | C178: Zamboanga Sibugay
B179: Region X | C179: Bukidnon
B180: Region X | C180: Cagayan de Oro City
B181: Region X | C181: Camiguin
B182: Region X | C182: El Salvador City
B183: Region X | C183: Gingoog City
B184: Region X | C184: Iligan City
B185: Region X | C185: Lanao Del Norte
B186: Region X | C186: Malaybalay City
B187: Region X | C187: Misamis Occidental
B188: Region X | C188: Misamis oriental
B189: Region X | C189: Oroquieta City
B190: Region X | C190: Ozamis City
B191: Region X | C191: Tangub City
B192: Region X | C192: Valencia City
B193: Region XI | C193: Davao de Oro (Compostela Valley)
B194: Region XI | C194: Davao City
B195: Region XI | C195: Davao del Norte
B196: Region XI | C196: Davao del Sur
B197: Region XI | C197: Davao Occidental
B198: Region XI | C198: Davao Oriental
B199: Region XI | C199: Digos city
B200: Region XI | C200: Mati City
... 24 more rows
